{"text_format":"3","workbook":"xlsx","n_sheets":2,"sheets":["2021年招聘","2021年招聘计划"],"not_rendered":{"defined_names":2},"read":"whole","date_system":"1900"}

{"sheet":"2021年招聘","index":0,"n_rows":13,"n_cols":7,"rows_kept":13,"merged":[[0,0,0,1],[1,1,1,5],[12,0,12,1]]}
["附件1"]
[null,"2021年卫生系统招聘缺岗补招情况表"]
["序号","单位","2020年11月核定计划数","实际预计考录数","缺岗数","补招数"]
[1,"疾病预防控制中心",6,3,{"$f":"C4-D4","v":3},{"$f":"E4","v":3},3]
[3,"下沙街道下沙社区卫生服务中心",27,13,{"$f":"C5-D5","v":14},{"$f":"E5","v":14},9]
[4,"白杨街道白杨社区卫生服务中心",10,8,2,2]
[5,"白杨街道闻潮社区卫生服务中心",16,9,7,7,7]
[6,"河庄街道社区卫生服务中心",2,1,1,1,1]
[7,"义蓬街道社区卫生服务中心",3,1,2,2,2]
[8,"新湾街道社区卫生服务中心",6,0,6,6,6]
[9,"临江街道社区卫生服务中心",6,2,4,4,4]
[10,"前进街道社区卫生服务中心",2,0,2,2,3]
["小计",null,{"$f":"SUM(C4:C12)","v":78},{"$f":"SUM(D4:D12)","v":37},{"$f":"SUM(E4:E12)","v":41},{"$f":"SUM(F4:F12)","v":41},{"$f":"SUM(G4:G12)","v":35}]

{"sheet":"2021年招聘计划","index":1,"n_rows":35,"n_cols":17,"rows_kept":35,"merged":[[0,0,0,16],[1,0,2,0],[1,1,2,1],[1,2,2,2],[1,3,2,3],[1,4,2,4],[1,5,2,5],[1,6,2,6],[1,7,1,14],[1,15,2,15],[1,16,2,16],[3,1,34,1],[3,2,12,2],[3,3,12,3],[3,15,12,15],[13,2,14,2],[13,3,14,3],[13,15,14,15],[15,2,21,2],[15,3,21,3],[15,15,21,15],[23,2,24,2],[23,3,24,3],[23,15,24,15],[25,2,28,2],[25,3,28,3],[25,15,28,15],[29,2,32,2],[29,3,32,3],[29,15,32,15],[33,2,34,2],[33,3,34,3],[33,15,34,15]]}
["2021年杭州市钱塘区卫生健康系统所属事业单位公开招聘计划表"]
["序\n号","主管部门","招聘单位","经费\n形式","招聘\n岗位","岗位类型\n及等级","招聘\n人数","招聘条件",{"$nulls":7},"咨询电话","备注"]
[{"$nulls":7},"年龄","性别","学历","学位","专业","职称","户籍","其他要求"]
[1,"杭州市钱塘区社会发展局","下沙社区卫生服务中心","财政适当补助","B超医生","专业技术岗",1,"35周岁以下","不限","本科及以上",null,"医学影像专业","执业医师及以上","不限","具有临床执业医师资格证，执业范围为医学影像专业。","0571-86937308"]
[2,{"$nulls":3},"妇科医生","专业技术岗",2,"35周岁以下","不限","本科及以上",null,"临床医学专业","执业医师及以上","浙江","取得执业医师证、执业范围妇产科、中医妇科；具备相应专业住院医师规范化培训合格证或全科医师规范化培训合格证。"]
[3,{"$nulls":3},"眼科医生","专业技术岗",1,"35周岁以下","不限","本科及以上",null,"临床医学专业","执业医师及以上","不限","执业医师，执业范围为眼耳鼻咽喉科专业，且取得住院医师规范化培训证书或全科医师岗位培训证书。"]
[4,{"$nulls":3},"公共卫生医生","专业技术岗",1,"35周岁以下","不限","本科及以上",null,"预防医学专业","不限","不限","非2022年应届毕业生需取得执业医师证、执业范围公共卫生相关专业。"]
[5,{"$nulls":3},"口腔科医生","专业技术岗",1,"35周岁以下","不限","本科及以上",null,"口腔医学专业","执业医师及以上","不限","取得执业医师证"]
[6,{"$nulls":3},"全科医生","专业技术岗",3,"35周岁以下","不限","本科及以上",null,"临床医学专业","执业医师及以上","浙江","取得执业医师证，执业范围临床、全科，具备全科医师岗位培训合格证或全科医师规范化培训合格证。"]
[7,{"$nulls":3},"中医骨伤科医生","专业技术岗",1,"35周岁以下","不限","研究生及以上","硕士及以上","中医骨伤科学","不限","杭州","2022年应届毕业生"]
[8,{"$nulls":3},"放射医生","专业技术岗",1,"35周岁以下","不限","本科及以上",null,"医学影像专业","执业医师及以上","不限","具有临床执业医师资格证，执业范围为医学影像和放射治疗专业。                      "]
[9,{"$nulls":3},"护理","专业技术岗",2,"35周岁以下","不限","本科及以上",null,"护理学类","初级及以上","杭州","具有护士执业证书"]
[10,{"$nulls":3},"药剂科","专业技术岗",1,"35周岁以下","不限","本科及以上",null,"药学、临床药学","药师及以上","浙江","取得药师及以上卫生专业技术资格证"]
[11,null,"白杨社区卫生服务中心","财政适当补助","放射医师","专业技术岗",1,"40周岁以下","不限","本科及以上",null,"医学影像、临床医学专业","主治医师及以上","不限","执业范围为医学影像专业或医学影像和放射治疗专业。有CT资质经验或三级医院工作经验者优先。副高及以上职称年龄可放宽到45周岁。","0571-86875989","紧缺岗位"]
[12,{"$nulls":3},"儿保医师","专业技术岗",1,"35周岁以下","不限","本科及以上",null,"临床医学、中医学、中西医结合","执业医师及以上","浙江","执业范围为全科、内科、儿科、儿童保健、中医或中西医结合专业，具有住院医师规范化培训合格证书或全科岗位培训合格证书或全科规范化培训合格证书。"]
[13,null,"闻潮社区卫生服务中心","财政适当补助","儿科医师","专业技术岗",1,"40周岁以下","不限","本科及以上",null,"临床医学专业","执业医师及以上","不限","取得执业医师证，执业范围为儿科或全科，持有全科医师岗位培训合格证或住院医师规范化培训合格证。","0571-86917568","紧缺岗位"]
[14,{"$nulls":3},"B超医师","专业技术岗",1,"40周岁以下","不限","本科及以上",null,"医学影像、临床医学专业","执业医师及以上","不限","取得执业医师证，执业范围为医学影像专业或医学影像和放射治疗专业，住院医师规范化培训合格证书优先。",null,"紧缺岗位"]
[15,{"$nulls":3},"医学影像\n/心电医师","专业技术岗",1,"40周岁以下","不限","本科及以上",null,"医学影像、临床医学专业","执业医师及以上","不限","取得执业医师证，执业范围为医学影像专业或医学影像和放射治疗专业、内科专业或全科专业，住院医师规范化培训合格证书优先。",null,"紧缺岗位"]
[16,{"$nulls":3},"口腔医师","专业技术岗",1,"35周岁以下","不限","本科及以上",null,"口腔医学专业","执业医师及以上","浙江","取得执业医师证，执业范围为口腔专业，持有住院医师规范化培训合格证书。"]
[17,{"$nulls":3},"儿保医师","专业技术岗",1,"35周岁以下","不限","本科及以上",null,"临床医学专业","执业医师及以上","浙江","取得执业医师证，执业范围为全科、内科、儿科或儿童保健专业，持有全科医师岗位培训合格证或住院医师规范化培训合格证。"]
[18,{"$nulls":3},"药师","专业技术岗",1,"35周岁以下","不限","硕士研究生及以上","硕士及以上","药学专业","药师及以上","杭州","要求本科专业为药学，取得药师及以上卫生专业技术资格证"]
[19,{"$nulls":3},"护理","专业技术岗",1,"35周岁以下","不限","本科及以上",null,"护理学专业","初级及以上","杭州"]
[20,null,"河庄社区卫生服务中心","财政适当补助","公卫医生","专业技术岗",1,"35周岁以下","不限","硕士研究生及以上","硕士及以上","公共卫生、公共卫生与预防医学","不限","不限",null,"0571-83511578"]
[21,null,"义蓬社区卫生服务中心","财政适当补助","B超医师","专业技术岗",1,"40周岁以下","不限","本科及以上","学士及以上","医学影像、临床医学","不限","不限","妇科B超医师，建议女性报考。","0571-82150501\n","紧缺岗位"]
[22,{"$nulls":3},"儿保医师","专业技术岗",1,"35周岁以下","不限","本科及以上","学士及以上","临床医学、儿科学","不限","浙江","有儿保经验工作者优先"]
[23,null,"新湾社区卫生服务中心","财政适当补助","口腔医师","专业技术岗",1,"35周岁及以下","不限","本科及以上",null,"口腔医学","执业医师及以上","不限","取得执业医师证，执业范围为口腔专业；副主任医师及以上年龄放宽到45周岁。","0571-82129958\n"]
[24,{"$nulls":3},"康复医师","专业技术岗",1,"35周岁及以下","不限","本科及以上",null,"临床医学、针灸推拿学、康复医学与理疗学","执业医师及以上","不限","取得执业医师证，执业范围为全科、中医、康复类专业；副主任医师及以上年龄放宽到45周岁。"]
[25,{"$nulls":3},"全科医师1","专业技术岗",3,"35周岁及以下","不限","本科及以上",null,"临床医学、中西医结合医学","执业医师及以上","不限","取得执业医师证，执业范围为全科或内科、外科、儿科或中西医结合专业；副主任医师及以上年龄放宽到45周岁。"]
[26,{"$nulls":3},"全科医师2","专业技术岗",1,"35周岁及以下","不限","本科及以上","学士及以上","临床医学","不限","不限","无"]
[27,null,"临江社区卫生服务中心","财政适当补助","口腔医师","专业技术岗",1,"35周岁以下","不限","本科及以上",null,"口腔医学","执业医师及以上","不限","无","0571-83512708"]
[28,{"$nulls":3},"B超医师","专业技术岗",1,"40周岁以下","不限","本科及以上",null,"医学影像、临床医学","执业医师及以上","不限","执业范围为医学影像专业或医学影像和放射治疗专业。",null,"紧缺岗位"]
[29,{"$nulls":3},"放射技师","专业技术岗",1,"35周岁以下","不限","本科及以上",null,"医学影像技术","放射技师及以上","不限","放射技师及以上"]
[30,{"$nulls":3},"耳鼻喉科医师","专业技术岗",1,"35周岁以下","不限","本科及以上",null,"临床医学专业","执业医师及以上","不限","执业范围为耳鼻喉科或全科医学"]
[31,null,"前进社区卫生服务中心","财政适当补助","全科医师","专业技术岗",1,"35周岁以下","不限","本科及以上",null,"临床医学专业","执业医师及以上","浙江","取得全科岗位培训证或全科规范化培训合格证书。","0571-82127563"]
[32,{"$nulls":3},"中药剂","专业技术岗",1,"35周岁以下","不限","本科及以上",null,"中药学专业","初级（师）及以上","浙江","具有中药学（师）级及以上卫生专业技术资格证。近两年在医疗机构在岗从事中药剂专业工作。"]